Workbook

Sheet 附表1-1
A1: 附表1-1
A2: 一般公共预算收入表
B3: 单位：万元
A4: 项目 | B4: 预算数
A5: 一、税收收入 | B5: 111442
A6: 增值税 | B6: 33895 | E6: 988753
A7: 企业所得税 | B7: 6000 | E7: 822672
A8: 个人所得税 | B8: 2400
A9: 资源税 | B9: 31 | E9: 988753
A10: 城市维护建设税 | B10: 17500 | E10: 822672
A11: 房产税 | B11: 6800
A12: 印花税 | B12: 4000
A13: 城镇土地使用税 | B13: 9000
A14: 土地增值税 | B14: 15763
A15: 车船税 | B15: 480
A16: 耕地占用税 | B16: 0
A17: 契税 | B17: 15547
A18: 环境保护税 | B18: 26
A19: 其他税收收入
A20: 二、非税收入 | B20: =SUM(B21+B24+B25+B27) -> 15800
A21: 专项收入 | B21: 9200
A22: 其中：教育费附加收入 | B22: 7900
A23: 残疾人就业保障金收入 | B23: 1300
A24: 行政事业性收费收入 | B24: 1500
A25: 罚没收入 | B25: 3700
A26: 国有资本经营收入
A27: 国有资源（资产）有偿使用收入 | B27: 1400
A28: 捐赠收入
A29: 政府住房基金收入
A30: 其他收入
A31: 合计 | B31: =SUM(B5+B20) -> 127242

Sheet 附表1-2
A1: 附表1-2
A2: 一般公共预算支出表
B3: 单位：万元 | D3: 12.11 | F3: 12.22 | L3: 1.2
A4: 项目 | B4: 预算数 | F4: 科目编码 | G4: 科目（单位）名称 | H4: 合计 | L4: 科目编码 | M4: 科目（单位）名称 | N4: 合计
A5: 一、本级支出 | B5: 126466 | C5: 105429 | D5: 595734.14 | E5: =104401+13602 -> 118003 | F5: 201 | G5: 一般公共服务支出类合计 | H5: 596221.15 | I5: =F5-A5 ->  | J5: =H5-B5 -> 469755.15 | K5: 75943 | L5: 201 | M5: 一般公共服务支出类合计 | N5: 643048.95 | O5: =L5-A5 ->  | P5: =N5-B5 -> 516582.95 | R5: 717759 | T5: 201 | U5: 一般公共服务支出类合计 | V5: 659380.53 | W5: =B5-V5 -> -532914.53 | X5: =T5-A5 -> 
A6: 一般公共服务支出 | B6: 21715
A7: 公共安全支出 | B7: 9532
A8: 教育支出 | B8: 17520
A9: 科学技术支出 | B9: 14820
A10: 文化旅游体育与传媒支出 | B10: 3850
A11: 社会保障和就业支出 | B11: 20897
A12: 卫生健康支出 | B12: 9490 | D12: 7616.62 | F12: 20101 | G12: 人大事务款合计 | H12: 7616.62 | I12: =F12-A12 ->  | J12: =H12-B12 -> -1873.38 | L12: 20101 | M12: 人大事务款合计 | N12: 7749.58 | O12: =L12-A12 ->  | P12: =N12-B12 -> -1740.42 | T12: 20101 | U12: 人大事务款合计 | V12: 8475.47 | W12: =B12-V12 -> 1014.53 | X12: =T12-A12 -> 
A13: 节能环保支出 | B13: 5829 | D13: 3922.87 | F13: 2010101 | G13: 行政运行项合计 | H13: 3922.87 | I13: =F13-A13 ->  | J13: =H13-B13 -> -1905.66 | K13: 750 | L13: 2010101 | M13: 行政运行项合计 | N13: 4041.81 | O13: =L13-A13 ->  | P13: =N13-B13 -> -1786.72 | T13: 2010101 | U13: 行政运行项合计 | V13: 4680.94 | W13: =B13-V13 -> 1147.59 | X13: =T13-A13 -> 
A14: 城乡社区支出 | B14: 4028
A15: 农林水支出 | B15: 6027
A16: 交通运输支出 | B16: 225
A17: 资源勘探工业信息等支出 | B17: 545
A18: 商业服务业等支出 | B18: 830
A19: 自然资源海洋气象等支出 | B19: 819
A20: 住房保障支出 | B20: 3624
A21: 灾害防治及应急管理支出 | B21: 775
A22: 预备费 | B22: 2800
A23: 其他支出 | B23: 39
A24: 债务付息支出 | B24: 3100
A25: 债务发行费用支出 | B25: 1
A26: 合计 | B26: =SUM(B6:B25) -> 126466 | C26: 105429 | D26: 595734.14 | E26: =104401+13602 -> 118003 | F26: 201 | G26: 一般公共服务支出类合计 | H26: 596221.15 | I26: =F26-A26 ->  | J26: =H26-B26 -> 469755 | K26: 75943 | L26: 201 | M26: 一般公共服务支出类合计 | N26: 643048.95 | O26: =L26-A26 ->  | P26: =N26-B26 -> 516583 | R26: 717759 | T26: 201 | U26: 一般公共服务支出类合计 | V26: 659380.53 | W26: =B26-V26 -> -532914.6865 | X26: =T26-A26 -> 
T27: 232 | U27: 债务付息支出类合计 | V27: 19998.00 | W27: =B27-V27 -> -19998 | X27: =T27-A27 -> 232
T28: 23203 | U28: 地方政府一般债务付息支出款合计 | V28: 19998.00 | W28: =B28-V28 -> -19998 | X28: =T28-A28 -> 23203
T29: 2320301 | U29: 地方政府一般债券付息支出项合计 | V29: 19998.00 | W29: =B29-V29 -> -19998 | X29: =T29-A29 -> 2320301

Sheet 附表1-3
A1: 附表1-3
A2: 一般公共预算本级支出表
C3: 单位：万元 | E3: 12.11 | G3: 12.22 | M3: 1.2
A4: 科目编码 | B4: 科目名称 | C4: 预算数 | G4: 科目编码 | H4: 科目（单位）名称 | I4: 合计 | M4: 科目编码 | N4: 科目（单位）名称 | O4: 合计
A5: 201 | B5: 一般公共服务支出 | C5: 21715 | D5: 105429 | E5: 595734.14 | F5: 118003 | G5: 201 | H5: 一般公共服务支出类合计 | I5: 596221.15 | J5: 0 | K5: 576845.48 | L5: 75943 | M5: 201 | N5: 一般公共服务支出类合计 | O5: 643048.95 | P5: 0 | Q5: 623673.28 | S5: 717759 | U5: 201 | V5: 一般公共服务支出类合计 | W5: 659380.53 | X5: -640004.86 | Y5: 0
A6: 20103 | B6: 政府办公厅（室）及相关机构事务 | C6: 12930 | E6: 7616.62 | G6: 20101 | H6: 人大事务款合计 | I6: 7616.62 | J6: -2 | K6: -3806.38 | M6: 20101 | N6: 人大事务款合计 | O6: 7749.58 | P6: -2 | Q6: -3673.42 | U6: 20101 | V6: 人大事务款合计 | W6: 8475.47 | X6: 2947.53 | Y6: -2
A7: 2010301 | B7: 行政运行 | C7: 8733 | E7: 3922.87 | G7: 2010101 | H7: 行政运行项合计 | I7: 3922.87 | J7: -200 | K7: -3703.82 | L7: 750 | M7: 2010101 | N7: 行政运行项合计 | O7: 4041.81 | P7: -200 | Q7: -3584.88 | U7: 2010101 | V7: 行政运行项合计 | W7: 4680.94 | X7: 2945.75 | Y7: -200
A8: 2010302 | B8: 一般行政管理事务 | C8: 1949 | E8: 136 | G8: 2010199 | H8: 其他人大事务支出项合计 | I8: 135.60 | J8: (103) | K8: -1383 | M8: 2010199 | N8: 其他人大事务支出项合计 | O8: 135.60 | P8: (103) | Q8: -1383 | U8: 2010199 | V8: 其他人大事务支出项合计 | W8: 135.60 | X8: 1382.63 | Y8: -103
A9: 2010350 | B9: 事业运行 | C9: 2047 | E9: 7617 | G9: 20101 | H9: 人大事务款合计 | I9: 7616.62 | J9: (1990249) | K9: 5338 | M9: 20101 | N9: 人大事务款合计 | O9: 7749.58 | P9: (1990249) | Q9: 5471 | U9: 20101 | V9: 人大事务款合计 | W9: 8475.47 | X9: -6197.28 | Y9: -1990249
A10: 2010399 | B10: 其他政府办公厅（室）及相关机构事务支出 | C10: 200
A11: 20104 | B11: 发展与改革事务 | C11: 630 | E11: 136 | G11: 2010199 | H11: 其他人大事务支出项合计 | I11: 135.60 | J11: 1990095 | K11: -909 | M11: 2010199 | N11: 其他人大事务支出项合计 | O11: 135.60 | P11: 1990095 | Q11: -909 | U11: 2010199 | V11: 其他人大事务支出项合计 | W11: 135.60 | X11: 908.57 | Y11: 1990095
A12: 2010401 | B12: 行政运行 | C12: 473
A13: 2010402 | B13: 一般行政管理事务 | C13: 107 | U13: 232 | V13: 债务付息支出类合计 | W13: 19998.00 | X13: -19885 | Y13: -2010170
A14: 2010499 | B14: 其他发展与改革事务支出 | C14: 50 | U14: 23203 | V14: 地方政府一般债务付息支出款合计 | W14: 19998.00 | X14: -19548 | Y14: -1987296
A15: 20105 | B15: 统计信息事务 | C15: 54 | U15: 2320301 | V15: 地方政府一般债券付息支出项合计 | W15: 19998.00 | X15: -19908 | Y15: 2300196
A16: 2010502 | B16: 一般行政管理事务 | C16: 29
A17: 2010507 | B17: 专项普查活动 | C17: 25
A18: 20106 | B18: 财政事务 | C18: 714
A19: 2010601 | B19: 行政运行 | C19: 382
A20: 2010602 | B20: 一般行政管理事务 | C20: 332
A21: 20107 | B21: 税收事务 | C21: 1897
A22: 2010702 | B22: 一般行政管理事务 | C22: 1897
A23: 20108 | B23: 审计事务 | C23: 300
A24: 2010802 | B24: 一般行政管理事务 | C24: 25
A25: 2010804 | B25: 审计业务 | C25: 275
A26: 20111 | B26: 纪检监察事务 | C26: 164
A27: 2011101 | B27: 行政运行 | C27: 68
A28: 2011102 | B28: 一般行政管理事务 | C28: 67
A29: 2011199 | B29: 其他纪检监察事务支出 | C29: 29
A30: 20113 | B30: 商贸事务 | C30: 1014
A31: 2011301 | B31: 行政运行 | C31: 494
A32: 2011308 | B32: 招商引资 | C32: 520
A33: 20126 | B33: 档案事务 | C33: 20
A34: 2012604 | B34: 档案馆 | C34: 20
A35: 20129 | B35: 群众团体事务 | C35: 116
A36: 2012902 | B36: 一般行政管理事务 | C36: 11
A37: 2012906 | B37: 工会事务 | C37: 105
A38: 20132 | B38: 组织事务 | C38: 241
A39: 2013299 | B39: 其他组织事务支出 | C39: 241
A40: 20134 | B40: 统战事务 | C40: 3
A41: 2013402 | B41: 一般行政管理事务 | C41: 3
A42: 20138 | B42: 市场监督管理事务 | C42: 438
A43: 2013802 | B43: 一般行政管理事务 | C43: 257
A44: 2013805 | B44: 市场秩序执法 | C44: 60
A45: 2013810 | B45: 质量基础 | C45: 47
A46: 2013816 | B46: 食品安全监管 | C46: 14
A47: 2013899 | B47: 其他市场监督管理事务 | C47: 60
A48: 20139 | B48: 社会工作事务 | C48: 2532
A49: 2013904 | B49: 专项业务 | C49: 2107
A50: 2013999 | B50: 其他社会工作事务支出 | C50: 425
A51: 20140 | B51: 信访事务 | C51: 558
A52: 2014004 | B52: 信访业务 | C52: 553
A53: 2014099 | B53: 其他信访事务支出 | C53: 4
A54: 20199 | B54: 其他一般公共服务支出 | C54: 105
A55: 2019999 | B55: 其他一般公共服务支出 | C55: 105
A56: 204 | B56: 公共安全支出 | C56: 9532
A57: 20402 | B57: 公安 | C57: 8402
A58: 2040202 | B58: 一般行政管理事务 | C58: 7428
A59: 2040220 | B59: 执法办案 | C59: 70
A60: 2040299 | B60: 其他公安支出 | C60: 904
A61: 20404 | B61: 检察 | C61: 59
A62: 2040402 | B62: 一般行政管理事务 | C62: 59
A63: 20405 | B63: 法院 | C63: 572
A64: 2040501 | B64: 行政运行 | C64: 76
A65: 2040502 | B65: 一般行政管理事务 | C65: 496
A66: 20406 | B66: 司法 | C66: 499
A67: 2040602 | B67: 一般行政管理事务 | C67: 454
A68: 2040604 | B68: 基层司法业务 | C68: 2
A69: 2040606 | B69: 律师管理 | C69: 10
A70: 2040607 | B70: 公共法律服务 | C70: 27
A71: 2040610 | B71: 社区矫正 | C71: 7
A72: 205 | B72: 教育支出 | C72: 17520
A73: 20501 | B73: 教育管理事务 | C73: 14
A74: 2050102 | B74: 一般行政管理事务 | C74: 14
A75: 20502 | B75: 普通教育 | C75: 15937
A76: 2050201 | B76: 学前教育 | C76: 1690
A77: 2050202 | B77: 小学教育 | C77: 8898
A78: 2050203 | B78: 初中教育 | C78: 5012
A79: 2050205 | B79: 高等教育 | C79: 1
A80: 2050299 | B80: 其他普通教育支出 | C80: 337
A81: 20507 | B81: 特殊教育 | C81: 3
A82: 2050701 | B82: 特殊学校教育 | C82: 3
A83: 20509 | B83: 教育附加安排的支出 | C83: 1566
A84: 2050902 | B84: 农村中小学教学设施 | C84: 34
A85: 2050903 | B85: 城市中小学校舍建设 | C85: 520
A86: 2050904 | B86: 城市中小学教学实施 | C86: 1012
A87: 206 | B87: 科学技术支出 | C87: 14820
A88: 20601 | B88: 科学技术管理事务 | C88: 2092
A89: 2060101 | B89: 行政运行 | C89: 818
A90: 2060102 | B90: 一般行政管理事务 | C90: 1274
A91: 20604 | B91: 技术研究与开发 | C91: 1240
A92: 2060404 | B92: 科技成果转化与扩散 | C92: 120
A93: 2060499 | B93: 其他技术研究与开发支出 | C93: 1120
A94: 20605 | B94: 科技条件与服务 | C94: 167
A95: 2060502 | B95: 技术创新服务体系 | C95: 167
A96: 20607 | B96: 科学技术普及 | C96: 40
A97: 2060799 | B97: 其他科学技术普及支出 | C97: 40
A98: 20608 | B98: 科技交流与合作 | C98: 10
A99: 2060801 | B99: 国际交流与合作 | C99: 10
A100: 20699 | B100: 其他科学技术支出 | C100: 11271
A101: 2069999 | B101: 其他科学技术支出 | C101: 11271
A102: 207 | B102: 文化旅游体育与传媒支出 | C102: 3850
A103: 20701 | B103: 文化和旅游 | C103: 466
A104: 2070104 | B104: 图书馆 | C104: 5
A105: 2070108 | B105: 文化活动 | C105: 8
A106: 2070109 | B106: 群众文化 | C106: 2
A107: 2070199 | B107: 其他文化和旅游支出 | C107: 451
A108: 20703 | B108: 体育 | C108: 370
A109: 2070307 | B109: 体育场馆 | C109: 370
A110: 20706 | B110: 新闻出版电影 | C110: 7
A111: 2070607 | B111: 电影 | C111: 7
A112: 20708 | B112: 广播电视 | C112: 3000
A113: 2070899 | B113: 其他广播电视支出 | C113: 3000
A114: 20799 | B114: 其他文化旅游体育与传媒支出 | C114: 7
A115: 2079999 | B115: 其他文化旅游体育与传媒支出 | C115: 7
A116: 208 | B116: 社会保障和就业支出 | C116: 20897
A117: 20801 | B117: 人力资源和社会保障管理事务 | C117: 4074
A118: 2080101 | B118: 行政运行 | C118: 1109
A119: 2080102 | B119: 一般行政管理事务 | C119: 89
A120: 2080104 | B120: 综合业务管理 | C120: 50
A121: 2080112 | B121: 劳动人事争议调解仲裁 | C121: 5
A122: 2080116 | B122: 引进人才费用 | C122: 2820
A123: 20802 | B123: 民政管理事务 | C123: 35
A124: 2080299 | B124: 其他民政管理事务支出 | C124: 35
A125: 20805 | B125: 行政事业单位养老支出 | C125: 7645
A126: 2080501 | B126: 行政单位离退休 | C126: 985
A127: 2080502 | B127: 事业单位离退休 | C127: 1607
A128: 2080505 | B128: 机关事业单位基本养老保险缴费支出 | C128: 2594
A129: 2080506 | B129: 机关事业单位职业年金缴费支出 | C129: 319
A130: 2080507 | B130: 对机关事业单位基本养老保险基金的补助 | C130: 2139
A131: 20807 | B131: 就业补助 | C131: 815
A132: 2080799 | B132: 其他就业补助支出 | C132: 815
A133: 20808 | B133: 抚恤 | C133: 1062
A134: 2080801 | B134: 死亡抚恤 | C134: 48
A135: 2080803 | B135: 在乡复员、退伍军人生活补助 | C135: 1
A136: 2080805 | B136: 义务兵优待 | C136: 243
A137: 2080899 | B137: 其他优抚支出 | C137: 770
A138: 20809 | B138: 退役安置 | C138: 1199
A139: 2080901 | B139: 退役士兵安置 | C139: 1023
A140: 2080903 | B140: 军队移交政府离退休干部管理机构 | C140: 0
A141: 2080904 | B141: 退役士兵管理教育 | C141: 1
A142: 2080905 | B142: 军队转业干部安置 | C142: 76
A143: 2080999 | B143: 其他退役安置支出 | C143: 99
A144: 20810 | B144: 社会福利 | C144: 1038
A145: 2081002 | B145: 老年福利 | C145: 853
A146: 2081006 | B146: 养老服务 | C146: 158
A147: 2081099 | B147: 其他社会福利支出 | C147: 27
A148: 20811 | B148: 残疾人事业 | C148: 99
A149: 2081104 | B149: 残疾人康复 | C149: 11
A150: 2081105 | B150: 残疾人就业 | C150: 1
A151: 2081199 | B151: 其他残疾人事业支出 | C151: 87
A152: 20819 | B152: 最低生活保障 | C152: 450
A153: 2081901 | B153: 城市最低生活保障金支出 | C153: 150
A154: 2081902 | B154: 农村最低生活保障金支出 | C154: 300
A155: 20825 | B155: 其他生活救助 | C155: 1
A156: 2082501 | B156: 其他城市生活救助 | C156: 1
A157: 20826 | B157: 财政对基本养老保险基金的补助 | C157: 3453
A158: 2082602 | B158: 财政对城乡居民基本养老保险基金的补助 | C158: 3453
A159: 20828 | B159: 退役军人管理事务 | C159: 50
A160: 2082802 | B160: 一般行政管理事务 | C160: 35
A161: 2082804 | B161: 拥军优属 | C161: 15
A162: 20830 | B162: 财政代缴社会保险费支出 | C162: 4
A163: 2083001 | B163: 财政代缴城乡居民基本养老保险费支出 | C163: 4
A164: 20899 | B164: 其他社会保障和就业支出 | C164: 971
A165: 2089999 | B165: 其他社会保障和就业支出 | C165: 971
A166: 210 | B166: 卫生健康支出 | C166: 9490
A167: 21001 | B167: 卫生健康管理事务 | C167: 71
A168: 2100102 | B168: 一般行政管理事务 | C168: 25
A169: 2100199 | B169: 其他卫生健康管理事务支出 | C169: 46
A170: 21003 | B170: 基础医疗卫生机构 | C170: 263
A171: 2100302 | B171: 乡镇卫生院 | C171: 167
A172: 2100399 | B172: 其他基层医疗卫生机构支出 | C172: 96
A173: 21004 | B173: 公共卫生 | C173: 3427
A174: 2100408 | B174: 基本公共卫生服务 | C174: 1404
A175: 2100409 | B175: 重大公共卫生服务 | C175: 20
A176: 2100499 | B176: 其他公共卫生支出 | C176: 2003
A177: 21007 | B177: 计划生育事务 | C177: 1166
A178: 2100717 | B178: 计划生育服务 | C178: 1166
A179: 21011 | B179: 行政事业单位医疗 | C179: 2583
A180: 2101101 | B180: 行政单位医疗 | C180: 89
A181: 2101102 | B181: 事业单位医疗 | C181: 1093
A182: 2101103 | B182: 公务员医疗补助 | C182: 1401
A183: 21014 | B183: 优抚对象医疗 | C183: 60
A184: 2101401 | B184: 优抚对象医疗补助 | C184: 60
A185: 21099 | B185: 其他卫生健康支出 | C185: 1920
A186: 2109999 | B186: 其他卫生健康支出 | C186: 1920
A187: 211 | B187: 节能环保支出 | C187: 5829
A188: 21101 | B188: 环境保护管理事务 | C188: 395
A189: 2110102 | B189: 一般行政管理事务 | C189: 295
A190: 2110105 | B190: 环境保护法规、规划及标准 | C190: 100
A191: 21102 | B191: 环境监测与监察 | C191: 298
A192: 2110299 | B192: 其他环境监测与监察支出 | C192: 298
A193: 21103 | B193: 污染防治 | C193: 5136
A194: 2110301 | B194: 大气 | C194: 1926
A195: 2110302 | B195: 水体 | C195: 3210
A196: 212 | B196: 城乡社区支出 | C196: 4028
A197: 21201 | B197: 城乡社区管理事务 | C197: 2737
A198: 2120101 | B198: 行政运行 | C198: 629
A199: 2120102 | B199: 一般行政管理事务 | C199: 304
A200: 2120104 | B200: 城管执法 | C200: 482
... 82 more rows

Sheet 附表1-4
A1: 附表1-4
A2: 一般公共预算本级基本支出表
C3: 单位：万元
A4: 科目编码 | B4: 科目名称 | C4: 预算数
A5: 501 | B5: 机关工资福利支出 | C5: =SUM(C6:C9) -> 19298
A6: 50101 | B6: 工资奖金津补贴 | C6: 5980
A7: 50102 | B7: 社会保障缴费 | C7: 2134
A8: 50103 | B8: 住房公积金 | C8: 822
A9: 50199 | B9: 其他工资福利支出 | C9: 10362
A10: 502 | B10: 机关商品和服务支出 | C10: =SUM(C11:C20) -> 1902
A11: 50201 | B11: 办公经费 | C11: 1671
A12: 50202 | B12: 会议费 | C12: 10
A13: 50203 | B13: 培训费 | C13: 17
A14: 50204 | B14: 专用材料购置费
A15: 50205 | B15: 委托业务费
A16: 50206 | B16: 公务接待费 | C16: 31
A17: 50207 | B17: 因公出国（境）费用
A18: 50208 | B18: 公务用车运行维护费 | C18: 161
A19: 50209 | B19: 维修（护）费 | C19: 6
A20: 50299 | B20: 其他商品和服务支出 | C20: 7
A21: 503 | B21: 机关资本性支出（一）
A22: 50301 | B22: 房屋建筑物购建
A23: 50302 | B23: 基础设施建设
A24: 50303 | B24: 公务用车购置
A25: 50305 | B25: 土地征迁补偿和安置支出
A26: 50306 | B26: 设备购置
A27: 50307 | B27: 大型修缮
A28: 50399 | B28: 其他资本性支出
A29: 505 | B29: 对事业单位经常性补助 | C29: =SUM(C30:C31) -> 24849
A30: 50501 | B30: 工资福利支出 | C30: 24098
A31: 50502 | B31: 商品和服务支出 | C31: 751
A32: 50599 | B32: 其他对事业单位补助 | C32: 0
A33: 506 | B33: 对事业单位资本性补助
A34: 50601 | B34: 资本性支出（一）
A35: 50602 | B35: 资本性支出（二）
A36: 507 | B36: 对企业补助
A37: 50701 | B37: 费用补贴
A38: 50702 | B38: 利息补贴
A39: 50799 | B39: 其他对企业补助
A40: 508 | B40: 对企业资本性支出
A41: 50803 | B41: 资本金注入（一）
A42: 509 | B42: 对个人和家庭的补助 | C42: =SUM(C43:C47) -> 2599
A43: 50901 | B43: 社会福利和救助 | C43: 7
A44: 50902 | B44: 助学金
A45: 50903 | B45: 个人农业生产补贴
A46: 50905 | B46: 离退休费 | C46: 2592
A47: 50999 | B47: 其他对个人和家庭补助
A48: 510 | B48: 对社会保障基金补助
A49: 51002 | B49: 对社会保险基金补助
A50: 51003 | B50: 补充全国社会保障基金
A51: 511 | B51: 债务利息及费用支出
A52: 51101 | B52: 国内债务付息
A53: 51102 | B53: 国外债务付息
A54: 51103 | B54: 国内债务发行费用
A55: 51104 | B55: 国外债务发行费用
A56: 514 | B56: 预备费及预留
A57: 51401 | B57: 预备费
A58: 51402 | B58: 预留
A59: 599 | B59: 其他支出
A60: 59906 | B60: 赠与
A61: 59907 | B61: 国家赔偿费用支出
A62: 59908 | B62: 对民间非营利组织和群众性自治组织补贴
A63: 合 计 | C63: =SUM(C5+C10+C29+C42) -> 48647

Sheet 附表1-5
A1: 附表1-5
A2: 一般公共预算税收返还、一般性和专项转移支付分地区 安排情况表
D3: 单位：万元 | F3: 12.11 | H3: 12.22 | N3: 1.2
A4: 地区名称 | B4: 税收返还 | C4: 一般性转移支付 | D4: 专项转移支付 | H4: 科目编码 | I4: 科目（单位）名称 | J4: 合计 | N4: 科目编码 | O4: 科目（单位）名称 | P4: 合计
A5: 市（县、镇）名1 | E5: 105429 | F5: 595734.14 | G5: =104401+13602 -> 118003 | H5: 201 | I5: 一般公共服务支出类合计 | J5: 596221.15 | K5: =H5-A5 ->  | L5: =J5-#REF! ->  | M5: 75943 | N5: 201 | O5: 一般公共服务支出类合计 | P5: 643048.95 | Q5: =N5-A5 ->  | R5: =P5-#REF! ->  | T5: 717759 | V5: 201 | W5: 一般公共服务支出类合计 | X5: 659380.53 | Y5: =#REF!-X5 ->  | Z5: =V5-A5 -> 
A6: 市（县、镇）名2
A7: 市（县、镇）名3
A8: 市（县、镇）名4
A9: 市（县、镇）名5
A10: ……
A11: 未分配数
A12: 合计 | H12: ="" ->  | I12: ="" ->  | J12: ="" ->  | N12: ="" ->  | O12: ="" ->  | P12: ="" ->  | X12: =X13+#REF!+#REF!+#REF!+#REF!+#REF!+#REF!+#REF!+#REF!+#REF!+#REF!+#REF!+#REF!+#REF!+#REF!+#REF!+#REF!+#REF!+#REF!+#REF!+#REF! ->  | Y12: =Y13+#REF!+#REF!+#REF!+#REF!+#REF!+#REF!+#REF!+#REF!+#REF!+#REF!+#REF!+#REF!+#REF!+#REF!+#REF!+#REF!+#REF!+#REF!+#REF!+#REF! -> 
V13: 232 | W13: 债务付息支出类合计 | X13: 19998.00 | Y13: =#REF!-X13 ->  | Z13: =V13-A13 -> 232
V14: 23203 | W14: 地方政府一般债务付息支出款合计 | X14: 19998.00 | Y14: =#REF!-X14 ->  | Z14: =V14-A14 -> 23203
A15: 备注：此表无数据 | V15: 2320301 | W15: 地方政府一般债券付息支出项合计 | X15: 19998.00 | Y15: =#REF!-X15 ->  | Z15: =V15-A15 -> 

Sheet 附表1-6
A1: 附表1-6
A2: 一般公共预算专项转移支付分项目安排情况表
B3: 单位：万元
A4: 项目名称 | B4: 预算数
A10: 合计
A11: 备注：此表无数据。

Sheet 附表1-7
A1: 附表1-7
A2: 政府性基金预算收入表
B3: 单位：万元
A4: 项目 | B4: 预算数
A5: 1.国有土地收益基金收入
A6: 2.农业土地开发资金收入 | B6: 360
A7: 3.国有土地使用权出让收入 | B7: 62570
A8: 4.城市基础设施配套费收入
A9: 5.大中型水库移民后期扶持基金收入
A10: 6.国家电影事业发展专项资金收入
A11: 7.污水处理费收入
A12: 8.彩票公益金收入
A13: 9.彩票销售机构业务费用
A14: 10.民航发展基金收入
A15: 11.旅游发展基金收入
A16: 12.其他政府性基金收入
A17: 13.专项债务对应项目专项收入
A18: 14.上级补助收入 | B18: 691
A19: 15.地方政府专项债务转贷收入
A20: 16.上年结余收入 | B20: 69258
A21: 合计 | B21: =SUM(B5:B20) -> 132879

Sheet 附表1-8
A1: 附表1-8
A2: 政府性基金预算支出表
B3: 单位：万元 | D3: 12.11 | F3: 12.22 | L3: 1.2
A4: 项目 | B4: 预算数 | F4: 科目编码 | G4: 科目（单位）名称 | H4: 合计 | L4: 科目编码 | M4: 科目（单位）名称 | N4: 合计
A5: 一、本级支出 | C5: 105429 | D5: 595734.14 | E5: 118003 | F5: 201 | G5: 一般公共服务支出类合计 | H5: 596221.15 | J5: 596221.15 | K5: 75943 | L5: 201 | M5: 一般公共服务支出类合计 | N5: 643048.95 | P5: 643048.95 | R5: 717759 | T5: 201 | U5: 一般公共服务支出类合计 | V5: 659380.53 | W5: -659380.53
A6: 1.科学技术支出 | B6: 0
A7: 2.文化旅游体育与传媒支出 | B7: 8
A8: 3.社会保障和就业支出 | B8: 0
A9: 4.节能环保支出 | B9: 0
A10: 5.城乡社区支出 | B10: 73422
A11: 6.农林水支出 | B11: 130
A12: 7.交通运输支出 | B12: 0
A13: 8.资源勘探信息等支出 | B13: 100
A14: 9.金融支出 | B14: 50339
A15: 10.其他支出
A16: 11.债务付息支出 | B16: 8800
A17: 12.债务发行费用支出 | B17: 80
A18: 13.债务还本支出
A19: 14.调出资金
A20: 15.年终结余
A21: 合计 | B21: =SUM(B5:B20) -> 132879
T22: 232 | U22: 债务付息支出类合计 | V22: 19998.00 | W22: -19998 | X22: 232
T23: 23203 | U23: 地方政府一般债务付息支出款合计 | V23: 19998.00 | W23: -19998 | X23: 23203
T24: 2320301 | U24: 地方政府一般债券付息支出项合计 | V24: 19998.00 | W24: -19998 | X24: 2320301

Sheet 附表1-9
A1: 附表1-9
A2: 政府性基金预算本级支出表
C3: 单位：万元 | E3: 12.11 | G3: 12.22 | M3: 1.2
A4: 科目编码 | B4: 科目名称 | C4: 预算数 | G4: 科目编码 | H4: 科目（单位）名称 | I4: 合计 | M4: 科目编码 | N4: 科目（单位）名称 | O4: 合计
A5: 207 | B5: 文化旅游体育与传媒支出 | C5: 8 | D5: 105429 | E5: 595734.14 | F5: 118003 | G5: 201 | H5: 一般公共服务支出类合计 | I5: 596221.15 | J5: -6 | K5: 596216.15 | L5: 75943 | M5: 201 | N5: 一般公共服务支出类合计 | O5: 643048.95 | P5: -6 | Q5: 643043.95 | S5: 717759 | U5: 201 | V5: 一般公共服务支出类合计 | W5: 659380.53 | X5: -659375.53 | Y5: -6
A6: 20707 | B6: 国家电影事业发展专项资金安排的支出 | C6: 8
A7: 2070799 | B7: 其他国家电影事业发展专项资金支出 | C7: 8 | E7: 3922.87 | G7: 2010101 | H7: 行政运行项合计 | I7: 3922.87 | J7: -60698 | K7: 3917.87 | L7: 750 | M7: 2010101 | N7: 行政运行项合计 | O7: 4041.81 | P7: -60698 | Q7: 4036.81 | U7: 2010101 | V7: 行政运行项合计 | W7: 4680.94 | X7: -4675.94 | Y7: -60698
A8: 212 | B8: 城乡社区支出 | C8: =SUM(C9+C18+C20+C22) -> 73422
A9: 21208 | B9: 国有土地使用权出让收入安排的支出 | C9: =SUM(C10:C18) -> 68450 | U9: 232 | V9: 债务付息支出类合计 | W9: 19998.00 | X9: 33824.5 | Y9: -20976
A10: 2120801 | B10: 征地和拆迁补偿支出 | C10: 40200 | U10: 23203 | V10: 地方政府一般债务付息支出款合计 | W10: 19998.00 | X10: 11402 | Y10: -2097598
A11: 2120802 | B11: 土地开发支出 | C11: 4000 | U11: 2320301 | V11: 地方政府一般债券付息支出项合计 | W11: 19998.00 | X11: -15878 | Y11: 199499
A12: 2120803 | B12: 城市建设支出 | C12: 9683
A13: 2120804 | B13: 农村基础设施建设支出
A14: 2120805 | B14: 补助被征地农民支出 | C14: 6935
A15: 2120814 | B15: 农业生产发展支出
A16: 2120816 | B16: 农业农村生态环境支出 | C16: 870
A17: 2120899 | B17: 其他国有土地使用权出让收入安排的支出 | C17: 6762
A18: 21210 | B18: 国有土地收益基金安排的支出
A19: 2121002 | B19: 土地开发支出
A20: 21213 | B20: 城市基础设施配套费安排的支出 | C20: 500
A21: 2121399 | B21: 其他城市基础设施配套费安排的支出 | C21: 500
A22: 21298 | B22: 超长期特别国债安排支出 | C22: 4472
A23: 2129801 | B23: 城乡社区公共设施 | C23: 4472
A24: 213 | B24: 农林水支出 | C24: =SUM(C25) -> 130
A25: 21372 | B25: 大中型水库移民辅助扶持基金支出 | C25: =SUM(C26:C27) -> 130
A26: 2137201 | B26: 移民补助 | C26: 59
A27: 2137202 | B27: 基础设施建设和经济发展 | C27: 71
A28: 215 | B28: 资源勘探工业信息等支出 | C28: 100
A29: 21598 | B29: 超长期特别国债安排支出 | C29: 100
A30: 2159802 | B30: 制造业 | C30: 100
A31: 229 | B31: 其他支出 | C31: =SUM(C32+C34) -> 50340
A32: 22904 | B32: 其他政府性基金及对应专项债务收入安排的支出 | C32: =SUM(C33) -> 50158
A33: 2290402 | B33: 其他地方自行试点项目收益专项债券收入安排的支出 | C33: 50158
A34: 22960 | B34: 彩票公益金及对应专项债务收入安排的支出 | C34: =SUM(C35:C37) -> 181
A35: 2296002 | B35: 用于社会福利的彩票公益金支出 | C35: 181
A36: 2296003 | B36: 用于体育事业的彩票公益金支出
A37: 2296006 | B37: 用于残疾人事业的彩票公益金支出
A38: 232 | B38: 债务付息支出 | C38: =SUM(C39) -> 8880
A39: 23204 | B39: 地方政府专项债务付息支出 | C39: =SUM(C40:C42) -> 8880
A40: 2320411 | B40: 国有土地使用权出让金债务付息支出 | C40: 900
A41: 2320432 | B41: 政府收费公路专项债券付息支出 | C41: 711
A42: 2320498 | B42: 其他地方自行试点项目收益专项债券付息支出 | C42: 7269
A43: 233 | B43: 债务发行费用支出
A44: 23304 | B44: 地方政府专项债务发行费用支出
A45: 2330411 | B45: 国有土地使用权出让金债务发行费用支出
A46: 2330432 | B46: 政府收费公路专项债券发行费用支出
A47: 2330498 | B47: 其他地方自行试点项目收益专项债券发行费用支出
A48: 合计 | C48: =SUM(C5+C8+C24+C31+C38+C43+C28) -> 132879

Sheet 附表1-10
A1: 附表1-10
A2: 政府性基金预算专项转移支付分地区安排情况表
B3: 单位：万元 | D3: 12.11 | F3: 12.22 | L3: 1.2
A4: 地区名称 | B4: 预算数 | F4: 科目编码 | G4: 科目（单位）名称 | H4: 合计 | L4: 科目编码 | M4: 科目（单位）名称 | N4: 合计
A5: 市（县、镇）名1 | C5: 105429 | D5: 595734.14 | E5: =104401+13602 -> 118003 | F5: 201 | G5: 一般公共服务支出类合计 | H5: 596221.15 | I5: =F5-A5 ->  | J5: =H5-#REF! ->  | K5: 75943 | L5: 201 | M5: 一般公共服务支出类合计 | N5: 643048.95 | O5: =L5-A5 ->  | P5: =N5-#REF! ->  | R5: 717759 | T5: 201 | U5: 一般公共服务支出类合计 | V5: 659380.53 | W5: =#REF!-V5 ->  | X5: =T5-A5 -> 
A6: 市（县、镇）名2
A7: 市（县、镇）名3
A8: 市（县、镇）名4
A9: 市（县、镇）名5
A10: ……
A11: 未分配数
A12: 合计 | F12: ="" ->  | G12: ="" ->  | H12: ="" ->  | L12: ="" ->  | M12: ="" ->  | N12: ="" ->  | V12: =V13+#REF!+#REF!+#REF!+#REF!+#REF!+#REF!+#REF!+#REF!+#REF!+#REF!+#REF!+#REF!+#REF!+#REF!+#REF!+#REF!+#REF!+#REF!+#REF!+#REF! ->  | W12: =W13+#REF!+#REF!+#REF!+#REF!+#REF!+#REF!+#REF!+#REF!+#REF!+#REF!+#REF!+#REF!+#REF!+#REF!+#REF!+#REF!+#REF!+#REF!+#REF!+#REF! -> 
T13: 232 | U13: 债务付息支出类合计 | V13: 19998.00 | W13: =#REF!-V13 ->  | X13: =T13-A13 -> 232
T14: 23203 | U14: 地方政府一般债务付息支出款合计 | V14: 19998.00 | W14: =#REF!-V14 ->  | X14: =T14-A14 -> 23203
A15: 备注：此表无数据 | T15: 2320301 | U15: 地方政府一般债券付息支出项合计 | V15: 19998.00 | W15: =#REF!-V15 ->  | X15: =T15-A15 -> 

Sheet 附表1-11
A1: 附表1-11
A2: 政府性基金预算专项转移支付分项目安排情况表
B3: 单位：万元
A4: 项目名称 | B4: 预算数
E6: 988753
A8: 合计
A9: 备注：此表无数据。 | B9: .

Sheet 附表1-12
A1: 附表1-12
A2: 国有资本经营预算收入表
B3: 单位：万元
A4: 项目 | B4: 预算数
A5: 一、利润收入
A6: 二、股利、股息收入
A7: 三、产权转让收入
A8: 四、清算收入
A9: 五、其他国有资本经营预算收入
A10: 六、上级补助收入 | B10: 13
A11: 七、上年结余收入
A12: 合计 | B12: 13

Sheet 附表1-13
A1: 附表1-13
A2: 国有资本经营预算支出表
B3: 单位：万元 | D3: 12.11 | F3: 12.22 | L3: 1.2
A4: 项目 | B4: 预算数 | F4: 科目编码 | G4: 科目（单位）名称 | H4: 合计 | L4: 科目编码 | M4: 科目（单位）名称 | N4: 合计
A5: 一、本级支出 | C5: 105429 | D5: 595734.14 | E5: 118003 | F5: 201 | G5: 一般公共服务支出类合计 | H5: 596221.15 | J5: 596221.15 | K5: 75943 | L5: 201 | M5: 一般公共服务支出类合计 | N5: 643048.95 | P5: 643048.95 | R5: 717759 | T5: 201 | U5: 一般公共服务支出类合计 | V5: 659380.53 | W5: -659380.53
A6: 1、社会保障和就业
A7: 2、国有资本经营预算支出
A8: 解决历史遗留问题及改革成本支出 | B8: 13
A9: 国有企业资本金注入
A10: 公益性设施投资支出
A11: 国有企业政策性补贴
A12: 金融国有资本经营预算支出
A13: 其他国有资本经营预算支出
A14: 二、对下转移支付 | C14: 105429 | D14: 595734.14 | E14: 118003 | F14: 201 | G14: 一般公共服务支出类合计 | H14: 596221.15 | J14: 596221 | K14: 75943 | L14: 201 | M14: 一般公共服务支出类合计 | N14: 643048.95 | P14: 643049 | R14: 717759 | T14: 201 | U14: 一般公共服务支出类合计 | V14: 659380.53 | W14: -659380.53
A15: 上解支出
A16: 调出资金
A17: 年终结余
A18: 合计 | B18: 13

Sheet 附表1-14
A1: 附表1-14
A2: 国有资本经营预算本级支出表
C3: 单位：万元 | E3: 12.11 | G3: 12.22 | M3: 1.2
A4: 科目编码 | B4: 科目名称 | C4: 预算数 | G4: 科目编码 | H4: 科目（单位）名称 | I4: 合计 | M4: 科目编码 | N4: 科目（单位）名称 | O4: 合计
A5: 223 | B5: 国有资本经营预算支出 | C5: 13 | D5: 105429 | E5: 595734.14 | F5: 118003 | G5: 201 | H5: 一般公共服务支出类合计 | I5: 596221.15 | J5: (22) | K5: 596218 | L5: 75943 | M5: 201 | N5: 一般公共服务支出类合计 | O5: 643048.95 | P5: (22) | Q5: 643046 | S5: 717759 | U5: 201 | V5: 一般公共服务支出类合计 | W5: 659380.53 | X5: -659377.53 | Y5: -22
A6: 22301 | B6: 解决历史遗留问题及改革成本支出 | C6: 13 | E6: 7616.62 | G6: 20101 | H6: 人大事务款合计 | I6: 7616.62 | J6: -2200 | K6: 7613.62 | M6: 20101 | N6: 人大事务款合计 | O6: 7749.58 | P6: -2200 | Q6: 7746.58 | U6: 20101 | V6: 人大事务款合计 | W6: 8475.47 | X6: -8472.47 | Y6: -2200
A7: 2230105 | B7: 国有企业退休人员社会化管理补助支出 | C7: 13 | E7: 3922.87 | G7: 2010101 | H7: 行政运行项合计 | I7: 3922.87 | J7: -220004 | K7: 3919.87 | L7: 750 | M7: 2010101 | N7: 行政运行项合计 | O7: 4041.81 | P7: -220004 | Q7: 4038.81 | U7: 2010101 | V7: 行政运行项合计 | W7: 4680.94 | X7: -4677.94 | Y7: -220004
A8: 合计 | C8: 13

Sheet 附表1-15
A1: 附表1-15
A2: 国有资本经营预算专项转移支付分地区安排情况表
B3: 单位：万元 | D3: 12.11 | F3: 12.22 | L3: 1.2
A4: 地区名称 | B4: 预算数 | F4: 科目编码 | G4: 科目（单位）名称 | H4: 合计 | L4: 科目编码 | M4: 科目（单位）名称 | N4: 合计
A5: 市（县、镇）名1 | C5: 105429 | D5: 595734.14 | E5: =104401+13602 -> 118003 | F5: 201 | G5: 一般公共服务支出类合计 | H5: 596221.15 | I5: =F5-A5 ->  | J5: =H5-#REF! ->  | K5: 75943 | L5: 201 | M5: 一般公共服务支出类合计 | N5: 643048.95 | O5: =L5-A5 ->  | P5: =N5-#REF! ->  | R5: 717759 | T5: 201 | U5: 一般公共服务支出类合计 | V5: 659380.53 | W5: =#REF!-V5 ->  | X5: =T5-A5 -> 
A6: 市（县、镇）名2
A7: 市（县、镇）名3
A8: 市（县、镇）名4
A9: 市（县、镇）名5
A10: ……
A11: 未分配数
A12: 合计 | F12: ="" ->  | G12: ="" ->  | H12: ="" ->  | L12: ="" ->  | M12: ="" ->  | N12: ="" ->  | V12: =V13+#REF!+#REF!+#REF!+#REF!+#REF!+#REF!+#REF!+#REF!+#REF!+#REF!+#REF!+#REF!+#REF!+#REF!+#REF!+#REF!+#REF!+#REF!+#REF!+#REF! ->  | W12: =W13+#REF!+#REF!+#REF!+#REF!+#REF!+#REF!+#REF!+#REF!+#REF!+#REF!+#REF!+#REF!+#REF!+#REF!+#REF!+#REF!+#REF!+#REF!+#REF!+#REF! -> 
T13: 232 | U13: 债务付息支出类合计 | V13: 19998.00 | W13: =#REF!-V13 ->  | X13: =T13-A13 -> 232
T14: 23203 | U14: 地方政府一般债务付息支出款合计 | V14: 19998.00 | W14: =#REF!-V14 ->  | X14: =T14-A14 -> 23203
T15: 2320301 | U15: 地方政府一般债券付息支出项合计 | V15: 19998.00 | W15: =#REF!-V15 ->  | X15: =T15-A15 -> 2320301
A16: 备注：此表无数据

Sheet 附表1-16
A1: 附表1-16
A2: 国有资本经营预算专项转移支付分项目安排情况表
B3: 单位：万元
A4: 项目名称 | B4: 预算数
E6: 988753
E7: 822672
A8: 合计
A13: 备注：此表无数据

Sheet 附表1-17
A1: 附表1-17
A2: 社会保险基金预算收入表
C3: 单位：万元
A4: 科目编码 | B4: 科目名称 | C4: 预算数
A5: 102 | B5: 社会保险基金收入 | C5: 4896
A6: 10210 | B6: 城乡居民基本养老保险基金收入 | C6: =SUM(C7:C12) -> 4896
A7: 1021001 | B7: 保险费收入 | C7: 918
A8: 1021002 | B8: 财政补贴收入 | C8: 3792
A9: 1021003 | B9: 利息收入 | C9: 36
A10: 1021004 | B10: 委托投资收益 | C10: 147
A11: 1021099 | B11: 其他收入
A12: 1101604 | B12: 转移收入 | C12: 3
A13: 10211 | B13: 机关事业养老保险基金收入 | C13: =SUM(C14:C17) -> 4259
A14: 1021101 | B14: 保险费收入 | C14: 2733
A15: 1021102 | B15: 财政补贴收入 | C15: 1474
A16: 1021103 | B16: 利息收入 | C16: 2
A17: 1101605 | B17: 机关事业单位基本养老保险基金转移收入 | C17: 50
A18: 110 | B18: 转移性收入 | C18: =SUM(C19) -> 12696
A19: 11008 | B19: 上年结余收入 | C19: 12696
A20: 1100803 | B20: 社会保险基金预算上年结余收入 | C20: 12696
A21: 110080305 | B21: 城乡居民基本养老保险基金上年结余收入 | C21: 12070
A22: 110080306 | B22: 机关事业单位基本养老保险基金上年结余收入 | C22: 626
A23: 合计 | C23: =SUM(C5+C13+C18) -> 21851

Sheet 附表1-18
A1: 附表1-18
A2: 社会保险基金预算支出表
C3: 单位：万元 | E3: 12.11 | G3: 12.22 | M3: 1.2
A4: 科目编码 | B4: 科目名称 | C4: 预算数 | G4: 科目编码 | H4: 科目（单位）名称 | I4: 合计 | M4: 科目编码 | N4: 科目（单位）名称 | O4: 合计
A5: 209 | B5: 社会保险基金支出 | C5: 3962 | D5: 105429 | E5: 595734.14 | F5: 118003 | G5: 201 | H5: 一般公共服务支出类合计 | I5: 596221.15 | J5: (8) | K5: 589068 | L5: 75943 | M5: 201 | N5: 一般公共服务支出类合计 | O5: 643048.95 | P5: (8) | Q5: 635896 | S5: 717759 | U5: 201 | V5: 一般公共服务支出类合计 | W5: 659380.53 | X5: -652227.53 | Y5: -8
A6: 20910 | B6: 城乡居民基本养老保险基金支出 | C6: =SUM(C7:C10) -> 3962 | E6: 7617 | G6: 20101 | H6: 人大事务款合计 | I6: 7616.62 | J6: (809) | K6: 4297 | M6: 20101 | N6: 人大事务款合计 | O6: 7749.58 | P6: (809) | Q6: 4430 | U6: 20101 | V6: 人大事务款合计 | W6: 8475.47 | X6: -5155.47 | Y6: -809
A7: 2091001 | B7: 基础养老金支出 | C7: 3670 | E7: 3923 | G7: 2010101 | H7: 行政运行项合计 | I7: 3922.87 | J7: (80900) | K7: 804 | L7: 750 | M7: 2010101 | N7: 行政运行项合计 | O7: 4041.81 | P7: (80900) | Q7: 923 | U7: 2010101 | V7: 行政运行项合计 | W7: 4680.94 | X7: -1561.94 | Y7: -80900
A8: 2091002 | B8: 个人账户养老金支出 | C8: 231 | E8: 136 | G8: 2010199 | H8: 其他人大事务支出项合计 | I8: 135.60 | J8: (80803) | K8: -14 | M8: 2010199 | N8: 其他人大事务支出项合计 | O8: 135.60 | P8: (80803) | Q8: -14 | U8: 2010199 | V8: 其他人大事务支出项合计 | W8: 135.60 | X8: 14.4 | Y8: -80803
A9: 2091003 | B9: 丧葬抚恤补助支出 | C9: 59 | E9: 7617 | G9: 20101 | H9: 人大事务款合计 | I9: 7616.62 | J9: (2070902) | K9: 7569 | M9: 20101 | N9: 人大事务款合计 | O9: 7749.58 | P9: (2070902) | Q9: 7702 | U9: 20101 | V9: 人大事务款合计 | W9: 8475.47 | X9: -8427.47 | Y9: -2070902
A10: 2301704 | B10: 城乡居民基本养老保险基金转移支出 | C10: 2 | E10: 3923 | G10: 2010101 | H10: 行政运行项合计 | I10: 3922.87 | J10: (80998) | K10: 3920 | L10: 750 | M10: 2010101 | N10: 行政运行项合计 | O10: 4041.81 | P10: (80998) | Q10: 4039 | U10: 2010101 | V10: 行政运行项合计 | W10: 4680.94 | X10: -4677.94 | Y10: -80998
A11: 20911 | B11: 机关事业基本养老保险基金支出 | C11: =SUM(C12:C13) -> 4258 | E11: 136 | G11: 2010199 | H11: 其他人大事务支出项合计 | I11: 135.60 | J11: 1989288 | K11: -3697 | M11: 2010199 | N11: 其他人大事务支出项合计 | O11: 135.60 | P11: 1989288 | Q11: -3697 | U11: 2010199 | V11: 其他人大事务支出项合计 | W11: 135.60 | X11: 3697.4 | Y11: 1989288
A12: 2091101 | B12: 基本养老金支出 | C12: 4008 | E12: 7617 | G12: 20101 | H12: 人大事务款合计 | I12: 7616.62 | J12: (2071000) | K12: 3834 | M12: 20101 | N12: 人大事务款合计 | O12: 7749.58 | P12: (2071000) | Q12: 3967 | U12: 20101 | V12: 人大事务款合计 | W12: 8475.47 | X12: -4692.47 | Y12: -2071000
A13: 2301705 | B13: 机关事业单位基本养老保险基金转移支出 | C13: 250 | E13: 3923 | G13: 2010101 | H13: 行政运行项合计 | I13: 3922.87 | J13: (81098) | K13: 3873 | L13: 750 | M13: 2010101 | N13: 行政运行项合计 | O13: 4041.81 | P13: (81098) | Q13: 3992 | U13: 2010101 | V13: 行政运行项合计 | W13: 4680.94 | X13: -4630.94 | Y13: -81098
A14: 230 | B14: 转移性支出 | C14: 13631 | E14: 136 | G14: 2010199 | H14: 其他人大事务支出项合计 | I14: 135.60 | J14: 2009969 | K14: -8397 | M14: 2010199 | N14: 其他人大事务支出项合计 | O14: 135.60 | P14: 2009969 | Q14: -8397 | U14: 2010199 | V14: 其他人大事务支出项合计 | W14: 135.60 | X14: 8397.4 | Y14: 2009969
A15: 23009 | B15: 年终结余 | C15: =SUM(C16:C17) -> 13631
A16: 2300915 | B16: 城乡居民基本养老保险基金年终结余 | C16: 13004
A17: 2300916 | B17: 机关事业单位基本养老保险基金年终结余 | C17: 627
A18: 合计 | C18: =SUM(C5+C11+C14) -> 21851

Sheet 附表2-1
A1: 高新区2024年地方政府债务限额及余额预算情况表
G2: 单位：亿元
A3: 地 区 | B3: 2024年债务限额 | E3: 2024年债务余额预计执行数
C4: 一般债务 | D4: 专项债务 | F4: 一般债务 | G4: 专项债务
A5: 公 式 | B5: A=B+C | C5: B | D5: C | E5: D=E+F | F5: E | G5: F
A6: 高新区 | B6: =C6+D6 -> 29.42 | C6: 9.64 | D6: 19.78 | E6: =F6+G6 -> 29.08 | F6: 9.40 | G6: 19.68

Sheet 附表2-2
A2: 高新区2024年地方政府一般债务余额情况表
C3: 单位：亿元
A4: 项 目 | B4: 预算数 | C4: 执行数
A5: 一、2023年末地方政府一般债务余额实际数 | B5: 9.40 | C5: 9.40
A6: 二、2024年末地方政府一般债务余额限额 | B6: 9.64 | C6: 9.64
A7: 三、2024年地方政府一般债务发行额 | B7: 0.00 | C7: 0.00
A8: 中央转贷地方的国际金融组织和外国政府贷款
A9: 2024年地方政府一般债券发行额 | B9: 0.00 | C9: 0.00
A10: 四、2024年地方政府一般债务还本额 | B10: 0.00 | C10: 0.00
A11: 五、2024年末地方政府一般债务余额预计执行数 | B11: 9.40 | C11: 9.40
A12: 六、2025年地方财政赤字
A13: 七、2025年地方政府一般债务余额限额 | B13: 9.64 | C13: 9.64

Sheet 附表2-3
A2: 高新区2024年地方政府专项债务余额情况表
C3: 单位：亿元
A4: 项 目 | B4: 预算数 | C4: 执行数
A5: 一、2023年末地方政府专项债务余额实际数 | B5: 14.85 | C5: 14.85
A6: 二、2024年末地方政府专项债务余额限额 | B6: 19.78 | C6: 19.78
A7: 三、2024年地方政府专项债务发行额 | B7: 5.83 | C7: 5.83
A8: 四、2024年地方政府专项债务还本额 | B8: 1.00 | C8: 1.00
A9: 五、2024年末地方政府专项债务余额预计执行数 | B9: 19.68 | C9: 19.68
A10: 六、2024年地方政府专项债务新增限额 | B10: 4.93 | C10: 4.93
A11: 七、2025年末地方政府专项债务余额限额 | B11: 19.78 | C11: 19.78

Sheet 附表2-4
A2: 高新区2025年地方政府债券发行及还本付息情况表
D3: 单位：亿元
A4: 项 目 | B4: 公式 | C4: 本地区 | D4: 本级
A5: 一、2024年发行预计执行数 | B5: A=B+D | C5: =C6+C8 -> 5.83
A6: （一）一般债券 | B6: B | C6: 0.00
A7: 其中：再融资债券 | B7: C | C7: 0.00
A8: （二）专项债券 | B8: D | C8: 5.83
A9: 其中：再融资债券 | B9: E | C9: 0.90
A10: 二、2024年还本预计执行数 | B10: F=G+H | C10: 1.00
A11: （一）一般债券 | B11: G | C11: 0.00
A12: （二）专项债券 | B12: H | C12: 1.00
A13: 三、2024年付息预计执行数 | B13: I=J+K | C13: 0.81
A14: （一）一般债券 | B14: J | C14: 0.30
A15: （二）专项债券 | B15: K | C15: 0.51
A16: 四、2025年还本预算数 | B16: L=M+O | C16: 0.00
A17: （一）一般债券 | B17: M | C17: 0.00
A18: 其中：再融资 | C18: 0.00
A19: 财政预算安排 | B19: N | C19: 0.00
A20: （二）专项债券 | B20: O | C20: 0.00
A21: 其中：再融资 | C21: 0.00
A22: 财政预算安排 | B22: P | C22: 0.00
A23: 五、2025年付息预算数 | B23: Q=R+S | C23: =C24+C25 -> 1.20
A24: （一）一般债券 | B24: R | C24: 0.31
A25: （二）专项债券 | B25: S | C25: 0.89

Sheet 附表2-5
A2: 高新区2025年地方政府债务限额提前下达情况表
A3: 单位：亿元
A4: 项目 | B4: 公 式 | C4: 本地区 | D4: 本级 | E4: 下级
A5: 一：2024年地方政府债务限额 | B5: A=B+C | C5: =C6+C7 -> 29.42
A6: 其中： 一般债务限额 | B6: B | C6: 9.64
A7: 专项债务限额 | B7: C | C7: 19.78
A8: 二：提前下达的2025年地方政府债务新增限额 | B8: D=E+F | C8: 0.00
A9: 其中： 一般债务限额 | B9: E
A10: 专项债务限额 | B10: F
A11: 注：本表反映本地区及本级年初预算中列示的地方政府债务限额情况，由县级以上地方各级财政部门在同级人大常委会批准年度预算后二十日内公开。

Sheet 附表2-6
B2: 高新区2025年年初新增地方政府债券资金安排表
F3: 单位：亿元
A4: 序号 | B4: 项目名称 | C4: 项目领域 | D4: 项目主管部门 | E4: 债券性质 | F4: 债券规模
A5: 1
A6: 此表无数据

Sheet 附表2-7
A2: 高新区2025年地方政府再融资债券分月发行安排表
B3: 单位：亿元
A4: 时间 | B4: 再融资债券计划发行规模
A5: 合计
A6: 1月
A7: 2月
A8: 3月
A9: 4月
A10: 5月
A11: 6月
A12: 7月
A13: 8月
A14: 9月
A15: 10月
A16: 11月
A17: 12月
